bitfinex/quotes_SOLUSD_20220129
["timestamp","ask_amount","ask_price","bid_price","bid_amount"]
[1643414402996,3.8157315,91.415,91.37,0.25]
[1643414403895,3.8157315,91.415,91.362,0.25]
[1643414404395,3.8157315,91.415,91.363,30.50373429]
[1643414404996,3.8157315,91.415,91.364,0.25]
[1643414405597,3.8157315,91.415,91.365,30.50373429]
[1643414405795,3.8157315,91.415,91.371,6.0]
[1643414405995,3.8157315,91.415,91.366,0.25]
[1643414406397,3.8157315,91.415,91.367,30.50373429]
[1643414406797,3.8157315,91.415,91.368,0.25]
[1643414407201,16.42,91.44,91.415,2.28494599]
[1643414412437,16.42,91.44,91.361,46.9113]
[1643414412639,16.42,91.44,91.371,6.0]
[1643414412836,16.42,91.44,91.372,0.25]
[1643414414238,56.4194099,91.406,91.362,0.25]
[1643414417839,56.4194099,91.406,91.362,9.87991216]
[1643414418042,56.4194099,91.406,91.362,0.25]
[1643414419341,16.422,91.43,91.362,0.25]
[1643414419542,56.4194099,91.396,91.362,0.25]
[1643414419840,35.06762217,91.396,91.362,0.25]
[1643414422743,35.06762217,91.396,91.356,4.46521584]
[1643414422744,44.18762217,91.396,91.356,4.46521584]
[1643414422942,6.0,91.386,91.338,4.46521584]
[1643414423148,6.0,91.386,91.328,4.46521584]
[1643414424044,6.0,91.386,91.308,9.33052199]
[1643414424244,6.0,91.386,91.302,41.79108316]
[1643414424645,6.0,91.386,91.3,4.46521584]
[1643414424845,35.06762217,91.346,91.308,0.25]
[1643414425044,48.21762217,91.346,91.308,0.25]
[1643414425444,48.21762217,91.346,91.301,0.25]
[1643414425645,48.21762217,91.346,91.293,0.25]
[1643414427249,48.21762217,91.346,91.292,48.5453]
[1643414427451,48.21762217,91.346,91.273,4.46521584]
[1643414427654,48.21762217,91.346,91.26,4.46521584]
[1643414427951,48.21762217,91.346,91.278,2.98796688]
[1643414428249,48.21762217,91.346,91.259,2.98796688]
[1643414428450,16.437,91.34,91.258,2.98796688]
[1643414428654,15.77,91.33,91.258,2.98796688]
[1643414428856,15.77,91.33,91.17,197.17]
[1643414429053,15.77,91.33,91.25,2.97969128]
[1643414429253,212.94,91.33,91.239,2.97969128]
[1643414429454,212.94,91.33,91.222,2.97969128]
[1643414429658,212.94,91.33,91.221,2.97969128]
[1643414429859,212.94,91.33,91.22,2.97969128]
[1643414430161,212.94,91.33,91.197,4.47121133]
[1643414430162,35.06762217,91.276,91.216,2.97969128]
[1643414430358,46.91762217,91.276,91.212,2.97969128]
[1643414430555,46.91762217,91.276,91.184,36.9394223]
[1643414430556,46.91762217,91.276,91.211,2.97969128]
[1643414430955,46.91762217,91.276,91.185,9.82948607]
[1643414430956,46.91762217,91.276,91.208,2.97969128]
[1643414431160,16.451,91.26,91.192,2.97969128]
[1643414431556,16.451,91.26,91.191,2.97969128]
[1643414431757,16.451,91.26,91.193,5.35827474]
[1643414431958,16.451,91.26,91.189,2.97969128]
[1643414432160,16.451,91.26,91.189,48.30890494]
[1643414432369,28.041,91.26,91.19,5.35827474]
[1643414432656,28.041,91.26,91.185,5.35827474]
[1643414432857,0.82720363,91.268,91.191,5.35827474]
[1643414433059,0.82720363,91.268,91.189,2.97969128]
[1643414433258,0.82720363,91.268,91.194,2.97969128]
[1643414433460,0.82720363,91.268,91.195,2.97969128]
[1643414433860,0.82720363,91.268,91.196,0.25]
[1643414434061,0.82720363,91.268,91.197,5.35827474]
[1643414434262,0.82720363,91.268,91.198,0.25]
[1643414434463,0.82720363,91.268,91.193,5.35827474]
[1643414434764,0.82720363,91.268,91.194,0.25]
[1643414434964,0.82720363,91.268,91.195,5.35827474]
[1643414435363,0.82720363,91.268,91.196,0.25]
[1643414435563,35.06762217,91.232,91.197,5.35827474]
[1643414435765,35.06762217,91.232,91.198,0.25]
[1643414435966,2.217e-05,91.232,91.198,0.25]
[1643414436200,2.217e-05,91.232,91.201,6.0]
[1643414436394,2.217e-05,91.232,91.202,28.89043847]
[1643414436594,2.217e-05,91.232,91.207,6.0]
[1643414436799,2.217e-05,91.232,91.212,6.0]
[1643414436995,2.217e-05,91.232,91.213,30.681]
[1643414437295,2.217e-05,91.232,91.214,24.3573]
[1643414437695,2.217e-05,91.232,91.224,6.0]
[1643414437896,2.217e-05,91.232,91.225,0.25]
[1643414438995,2.217e-05,91.232,91.224,6.0]
[1643414439399,2.217e-05,91.232,91.225,0.25]
[1643414439895,15.77,91.31,91.287,0.32970366]
[1643414440098,6.0,91.3,91.225,24.6277]
[1643414440502,6.0,91.3,91.226,33.55203633]
[1643414441097,22.445,91.3,91.226,33.55203633]
[1643414441899,22.445,91.3,91.227,0.25]
[1643414442105,22.445,91.3,91.227,24.0348]
[1643414442502,22.445,91.3,91.227,23.7848]
[1643414443904,22.445,91.3,91.228,0.25]
[1643414447805,22.445,91.3,91.229,5.32413303]
[1643414448208,22.445,91.3,91.23,0.25]
[1643414448508,22.445,91.3,91.23,41.60631334]
[1643414448709,22.445,91.3,91.231,5.32409993]
[1643414448912,22.445,91.3,91.232,0.25]
[1643414449409,6.0,91.3,91.234,2.97969128]
[1643414449608,6.0,91.3,91.236,2.97969128]
[1643414449808,6.0,91.3,91.241,2.97969128]
[1643414450011,15.77,91.33,91.246,2.97969128]
[1643414450208,15.77,91.33,91.25,35.39907086]
[1643414450409,15.77,91.33,91.251,5.33791193]
[1643414450612,6.0,91.32,91.251,5.58791193]
[1643414450810,21.77,91.32,91.252,24.0736]
[1643414451009,38.211,91.32,91.252,24.0736]
[1643414451211,38.211,91.32,91.253,5.58791193]
[1643414451610,38.211,91.32,91.254,5.33791193]
[1643414451813,38.211,91.32,91.255,0.25]
[1643414452012,38.211,91.32,91.256,5.33791193]
[1643414452215,38.211,91.32,91.266,2.97969128]
[1643414452414,38.211,91.32,91.267,0.25]
[1643414452815,38.211,91.32,91.268,5.33791193]
[1643414453213,38.211,91.32,91.269,0.25]
[1643414453414,38.211,91.32,91.27,5.33791193]
[1643414453714,38.211,91.32,91.266,2.97969128]
[1643414453916,38.211,91.32,91.265,2.97969128]
[1643414454842,49.071,91.32,91.265,2.97969128]
[1643414455016,49.071,91.32,91.266,5.33791193]
[1643414455413,49.071,91.32,91.27,2.97969128]
[1643414455812,49.071,91.32,91.264,2.97969128]
[1643414456014,49.071,91.32,91.259,2.97969128]
[1643414456214,49.071,91.32,91.258,2.97969128]
[1643414456412,49.071,91.32,91.255,2.97969128]
[1643414456615,49.071,91.32,91.254,2.97969128]
[1643414456815,49.071,91.32,91.253,2.97969128]
[1643414457217,15.0,91.319,91.277,1.49975528]
[1643414457414,16.449,91.3,91.254,5.33791193]
[1643414457615,16.449,91.3,91.227,4.47121133]
[1643414457616,15.77,91.29,91.227,4.47121133]
[1643414457819,15.77,91.29,91.255,5.33791193]
[1643414458115,15.77,91.29,91.256,5.33791193]
[1643414458315,15.77,91.29,91.217,4.47121133]
[1643414458917,15.77,91.29,91.218,0.25]
[1643414459119,22.449,91.28,91.225,4.47121133]
[1643414459316,49.819,91.28,91.225,4.47121133]
[1643414461218,49.819,91.28,91.226,4.47121133]
[1643414461418,49.819,91.28,91.21,4.47121133]
[1643414461620,23.3899,91.279,91.21,4.47121133]
[1643414461820,16.452,91.26,91.21,4.47121133]
[1643414462119,15.77,91.25,91.21,4.47121133]
[1643414462724,29.18,91.25,91.2,4.47121133]
[1643414463719,29.18,91.25,91.201,0.25]
[1643414463920,7.79356558,91.25,91.202,9.80912326]
[1643414464121,40.01756558,91.25,91.202,9.80912326]
[1643414464421,40.01756558,91.25,91.202,4.47121133]
[1643414464618,40.01756558,91.25,91.203,5.33791193]
[1643414464818,40.01756558,91.25,91.202,4.47121133]
[1643414465220,40.01756558,91.25,91.194,4.47121133]
[1643414465418,40.01756558,91.25,91.195,0.25]
[1643414465619,40.01756558,91.25,91.196,5.33791193]
[1643414465819,40.01756558,91.25,91.197,5.58791193]
[1643414466021,40.01756558,91.25,91.198,5.33791193]
[1643414466220,15.77,91.25,91.198,5.33791193]
[1643414466420,15.77,91.25,91.199,5.58791193]
[1643414466825,24.2499,91.299,91.2,5.33791193]
[1643414466826,15.77,91.27,91.2,5.33791193]
[1643414467226,15.77,91.27,91.201,5.58791193]
[1643414467528,15.77,91.27,91.205,4.47121133]
[1643414467727,15.77,91.27,91.206,65.8235558]
[1643414467925,15.77,91.27,91.207,5.33791193]
[1643414468128,15.77,91.27,91.208,5.33791193]
[1643414468328,15.77,91.27,91.209,0.25]
[1643414468530,15.77,91.27,91.209,5.58791193]
[1643414468927,15.77,91.27,91.21,5.33791193]
[1643414469129,32.22,91.27,91.211,5.33791193]
[1643414469327,32.22,91.27,91.212,5.58791193]
[1643414469532,32.22,91.27,91.213,5.33791193]
[1643414469728,32.22,91.27,91.214,5.33791193]
[1643414469958,32.22,91.27,91.215,5.33791193]
[1643414470155,32.22,91.27,91.216,5.33791193]
[1643414470556,32.22,91.27,91.217,5.33791193]
[1643414470955,32.22,91.27,91.218,5.33791193]
[1643414471159,32.22,91.27,91.219,5.33791193]
[1643414471558,32.22,91.27,91.22,5.33791193]
[1643414471762,32.22,91.27,91.221,5.33791193]
[1643414471959,32.22,91.27,91.222,5.33791193]
[1643414472160,32.22,91.27,91.223,5.33791193]
[1643414472359,32.22,91.27,91.224,5.33791193]
[1643414472558,32.22,91.27,91.225,5.33791193]
[1643414472959,32.22,91.27,91.226,5.33791193]
[1643414473361,32.22,91.27,91.208,42.52718179]
[1643414473559,32.22,91.27,91.209,4.76961822]
[1643414473759,32.22,91.27,91.208,4.76961822]
[1643414474561,32.22,91.27,91.209,34.85829566]
[1643414474859,32.22,91.27,91.21,4.76961822]
[1643414475261,32.22,91.27,91.207,4.76961822]
[1643414476361,32.22,91.27,91.208,0.25]
[1643414476564,32.22,91.27,91.209,4.76961822]
[1643414476764,32.22,91.27,91.21,0.25]
[1643414477162,0.25,91.269,91.211,4.76961822]
[1643414477767,0.25,91.269,91.207,4.76961822]
[1643414478169,0.25,91.269,91.208,0.25]
[1643414478370,0.25,91.269,91.209,4.76961822]
[1643414478571,16.452,91.26,91.209,4.76961822]
[1643414478975,16.452,91.26,91.207,4.76961822]
[1643414480774,0.25,91.259,91.207,4.76961822]
[1643414481976,14.0,91.259,91.207,4.76961822]
[1643414482776,15.77,91.25,91.207,4.76961822]
[1643414484780,15.77,91.25,91.182,4.47121133]
[1643414484979,15.77,91.25,91.183,23.2409]
[1643414485180,0.25,91.249,91.184,4.76961822]
[1643414485379,0.25,91.249,91.185,0.25]
[1643414485581,0.25,91.249,91.186,4.76961822]
[1643414485781,0.25,91.249,91.187,0.25]
[1643414486384,0.25,91.249,91.188,4.76961822]
[1643414486789,0.25,91.249,91.189,30.14789448]
[1643414486984,0.25,91.249,91.19,4.76961822]
[1643414487286,0.25,91.249,91.191,0.25]
[1643414487485,0.25,91.249,91.191,30.16564517]
[1643414487783,0.25,91.249,91.192,4.76961822]
[1643414487982,0.25,91.249,91.192,34.68526339]
[1643414488186,0.25,91.249,91.193,5.01961822]
[1643414488385,0.25,91.249,91.194,4.76961822]
[1643414488810,0.25,91.249,91.195,0.25]
[1643414489011,0.25,91.249,91.196,4.76961822]
[1643414489413,0.25,91.249,91.197,0.25]
[1643414489918,0.25,91.249,91.199,39.77512048]
[1643414490122,0.25,91.249,91.198,4.76961822]
[1643414490317,0.25,91.249,91.2,4.76961822]
[1643414490512,0.25,91.249,91.199,5.01961822]
[1643414490710,0.25,91.249,91.201,4.76961822]
[1643414490910,0.25,91.249,91.2,4.76961822]
[1643414491414,15.77,91.25,91.201,0.25]
[1643414491712,15.77,91.27,91.202,4.76961822]
[1643414491912,15.77,91.28,91.208,6.0]
[1643414492112,15.77,91.28,91.213,45.21348487]
[1643414492311,15.77,91.28,91.214,0.25]
[1643414492513,15.77,91.28,91.215,4.76961822]
[1643414492514,32.218,91.28,91.215,4.76961822]
[1643414492712,32.218,91.28,91.204,4.76961822]
[1643414492913,15.77,91.28,91.204,4.76961822]
[1643414493112,6.0,91.27,91.204,4.76961822]
[1643414493314,21.77,91.27,91.204,4.76961822]
[1643414494014,38.221,91.27,91.204,4.76961822]
[1643414494422,38.221,91.27,91.2,4.76961822]
[1643414494615,38.221,91.27,91.205,4.76961822]
[1643414494816,38.221,91.27,91.201,4.76961822]
[1643414495021,38.221,91.27,91.206,4.76961822]
[1643414495216,38.221,91.27,91.188,4.47121133]
[1643414495817,38.221,91.27,91.189,29.93467931]
[1643414496019,38.221,91.27,91.19,4.76961822]
[1643414496417,38.221,91.27,91.187,4.76961822]
[1643414496617,38.221,91.27,91.188,32.9693012]
[1643414496818,38.221,91.27,91.189,5.01961822]
[1643414497018,38.221,91.27,91.19,4.76961822]
[1643414497419,38.221,91.27,91.191,0.25]
[1643414497821,38.221,91.27,91.192,4.76961822]
[1643414498721,0.25,91.269,91.193,30.19089318]
[1643414498923,16.452,91.26,91.193,30.19089318]
[1643414499123,15.77,91.25,91.194,4.76961822]
[1643414499322,15.77,91.25,91.195,0.25]
[1643414499523,15.77,91.25,91.196,4.76961822]
[1643414499823,15.77,91.25,91.197,0.25]
[1643414500022,15.77,91.25,91.198,4.76961822]
[1643414500428,15.77,91.25,91.199,0.25]
[1643414500924,15.77,91.25,91.2,4.76961822]
[1643414501130,15.77,91.25,91.189,4.76961822]
[1643414501131,32.224,91.25,91.189,4.76961822]
[1643414501327,32.224,91.25,91.189,5.01961822]
[1643414501523,32.224,91.25,91.19,4.76961822]
[1643414501740,32.224,91.25,91.19,34.69987761]
[1643414501925,32.224,91.25,91.191,4.76961822]
[1643414502424,0.25,91.249,91.189,4.76961822]
[1643414503525,0.25,91.249,91.188,4.76961822]
[1643414505925,0.25,91.249,91.189,0.25]
[1643414506327,0.25,91.249,91.19,4.76961822]
[1643414506928,0.25,91.249,91.184,4.76961822]
[1643414508034,0.25,91.249,91.185,24.063]
[1643414508228,0.25,91.249,91.186,4.76961822]
[1643414510233,0.25,91.249,91.184,4.76961822]
[1643414511635,0.25,91.249,91.185,23.2464]
[1643414512039,0.25,91.249,91.186,4.76961822]
[1643414512838,16.456,91.24,91.186,4.76961822]
[1643414513037,45.926,91.24,91.186,4.76961822]
[1643414513241,45.926,91.24,91.168,4.76961822]
[1643414514641,6.0,91.23,91.168,4.76961822]
[1643414514866,32.232,91.22,91.168,4.76961822]
[1643414516066,32.232,91.22,91.167,22.7469]
[1643414516764,0.25,91.219,91.167,22.7469]
[1643414516964,16.461,91.21,91.167,22.7469]
[1643414517164,16.461,91.21,91.168,4.78297868]
[1643414517864,16.461,91.21,91.169,0.25]
[1643414518265,16.461,91.21,91.167,22.7469]
[1643414519365,16.461,91.21,91.168,0.25]
[1643414520368,0.25,91.209,91.168,33.55451503]
[1643414520769,0.25,91.219,91.168,33.55451503]
[1643414521373,0.25,91.219,91.167,22.7469]
[1643414521769,16.459,91.23,91.168,0.25]
[1643414521970,0.25,91.229,91.168,0.25]
[1643414522371,0.25,91.229,91.168,34.46403423]
[1643414524474,0.25,91.229,91.168,34.21403423]
[1643414524980,16.46,91.22,91.167,22.7469]
[1643414525176,22.46,91.22,91.167,22.7469]
[1643414525576,38.23,91.22,91.167,22.7469]
[1643414528177,38.23,91.22,91.117,4.47121133]
[1643414528378,25.89909142,91.219,91.112,4.75320901]
[1643414528577,18.10410889,91.11,91.072,76.7393]
[1643414528879,18.10410889,91.11,91.07,0.04339797]
[1643414529077,18.10410889,91.11,91.093,35.58653297]
[1643414529279,18.10410889,91.11,91.07,0.04339797]
[1643414529477,18.10410889,91.11,91.092,550.43090316]
[1643414530277,18.10410889,91.11,91.093,38.85264231]
[1643414530477,18.10410889,91.11,91.092,550.43090316]
[1643414530680,33.87410889,91.11,91.07,0.04339797]
[1643414531484,2.95669142,91.109,91.07,0.04339797]
[1643414531682,6.0,91.1,91.07,0.00339797]
[1643414531880,6.0,91.1,90.949,4.47121133]
[1643414531881,197.17,91.08,90.949,4.47121133]
[1643414532081,212.94,91.07,90.944,24.884]
[1643414532281,212.94,91.06,90.944,24.884]
[1643414532583,212.94,91.06,90.94,70.4067]
[1643414532584,15.77,91.05,90.94,70.4067]
[1643414532780,229.435,91.05,90.94,70.4067]
[1643414533180,197.17,91.04,90.94,70.4067]
[1643414533379,15.77,91.03,90.94,70.4067]
[1643414533881,32.266,91.03,90.941,0.25]
[1643414534480,15.77,91.03,90.941,0.25]
[1643414534680,15.77,91.03,90.95,6.0]
[1643414534879,15.77,91.03,90.951,0.25]
[1643414535080,15.77,91.03,91.013,0.0456586]
[1643414535887,0.25,91.029,91.013,0.0456586]
[1643414536088,15.77,91.03,91.013,0.0456586]
[1643414536886,15.77,91.03,91.013,9.3956586]
[1643414537090,15.77,91.03,91.014,39.54375485]
[1643414537284,197.17,91.08,91.014,39.54375485]
[1643414537285,15.77,91.06,91.014,39.54375485]
[1643414538085,2.95669142,91.087,91.014,39.54375485]
[1643414538486,15.77,91.08,91.014,39.54375485]
[1643414538786,197.17,91.1,91.014,39.54375485]
[1643414538787,15.77,91.07,91.014,39.54375485]
[1643414538988,15.77,91.06,91.014,39.54375485]
[1643414539887,0.25,91.059,91.014,39.54375485]
[1643414542789,32.26,91.06,91.015,0.25]
[1643414542989,32.26,91.06,91.015,12.95]
[1643414543190,15.77,91.06,91.015,12.7]
[1643414544794,15.77,91.06,91.016,0.25]
[1643414544991,15.77,91.06,91.014,39.54375485]
[1643414546896,15.77,91.08,91.015,0.25]
[1643414547094,15.77,91.1,91.024,6.0]
[1643414547293,15.77,91.1,91.025,0.25]
[1643414547494,15.77,91.1,91.025,6.25]
[1643414549194,2.95669142,91.137,91.025,6.25]
[1643414549398,15.77,91.16,91.038,0.3107024]
[1643414549595,15.77,91.17,91.066,0.307948]
[1643414549797,15.77,91.19,91.07,16.467]
[1643414550097,15.77,91.19,91.09,0.31593149]
[1643414550297,15.77,91.19,91.09,13.36]
[1643414550498,15.77,91.19,91.091,40.98972861]
[1643414550699,2.95669142,91.189,91.1,6.0]
[1643414550897,16.469,91.18,91.101,6.25]
[1643414551100,32.239,91.18,91.101,6.25]
[1643414552000,0.25,91.179,91.101,6.25]
[1643414552198,32.239,91.18,91.101,6.25]
[1643414553207,15.77,91.18,91.101,6.25]
[1643414553406,0.25,91.179,91.101,6.25]
[1643414553805,0.25,91.179,91.102,2.95669142]
[1643414554004,0.25,91.179,91.112,6.0]
[1643414554207,0.25,91.179,91.112,14.97]
[1643414554404,0.25,91.179,91.113,43.51187789]
[1643414554609,15.77,91.2,91.123,6.0]
[1643414554806,15.77,91.21,91.124,0.25]
[1643414555006,22.465,91.2,91.124,0.25]
[1643414555409,22.465,91.2,91.124,6.25]
[1643414556229,16.465,91.2,91.124,6.25]
[1643414557033,15.77,91.21,91.124,6.25]
[1643414557833,0.25,91.209,91.124,6.25]
[1643414558234,0.25,91.209,91.124,6.0]
[1643414558435,31.983,91.21,91.124,6.0]
[1643414559134,31.983,91.21,91.072,98.69503235]
[1643414559135,2.95669142,91.209,91.072,98.69503235]
[1643414559335,16.473,91.17,91.054,2.97066558]
[1643414559536,15.77,91.16,91.04,47.4134]
[1643414559935,2.95669142,91.159,91.04,47.4134]
[1643414560135,2.95669142,91.159,91.041,36.59332725]
[1643414560537,2.95669142,91.159,91.051,6.0]
[1643414560940,16.476,91.14,91.051,6.0]
[1643414561136,32.246,91.14,91.051,6.0]
[1643414561538,32.246,91.14,91.052,0.25]
[1643414561740,32.246,91.14,91.051,6.0]
[1643414561741,2.95669142,91.139,91.051,6.0]
[1643414562138,2.95669142,91.139,91.041,36.59332725]
[1643414562540,16.482,91.12,91.041,36.59332725]
[1643414562739,32.252,91.12,91.041,36.59332725]
[1643414562942,6.0,91.11,91.041,36.59332725]
[1643414564144,6.0,91.11,91.042,0.25]
[1643414564442,15.77,91.13,91.042,11.78]
[1643414564844,15.77,91.13,91.052,6.0]
[1643414565042,15.77,91.13,91.053,6.0]
[1643414565243,15.77,91.13,91.053,6.25]
[1643414565642,15.77,91.15,91.053,6.25]
[1643414565843,16.473,91.16,91.055,44.14480974]
[1643414566042,16.473,91.16,91.065,6.0]
[1643414566445,16.473,91.16,91.066,0.25]
[1643414568848,15.77,91.17,91.067,2.95669142]
[1643414569049,6.0,91.16,91.078,37.87039168]
[1643414569253,6.0,91.16,91.079,24.3569]
[1643414569451,15.77,91.19,91.088,6.0]
[1643414569651,6.0,91.18,91.089,6.0]
[1643414569851,6.0,91.18,91.089,6.25]
[1643414570252,15.77,91.2,91.099,142.91372116]
[1643414570452,15.77,91.2,91.101,109.4]
[1643414570857,15.77,91.2,91.111,6.0]
[1643414571054,15.77,91.2,91.111,15.4]
[1643414571255,45.53397891,91.25,91.132,0.31863809]
[1643414571552,113.7,91.384,91.132,0.31863809]
[1643414571553,2.99840787,91.308,91.156,0.31902144]
[1643414571853,78.6175,91.359,91.156,0.31902144]
[1643414571854,2.99840787,91.326,91.179,0.30754054]
[1643414572053,28.63462086,91.361,91.201,0.30493437]
[1643414572054,31.63302873,91.361,91.201,0.30493437]
[1643414572255,22.64256208,91.368,91.229,0.31900712]
[1643414572455,22.64256208,91.368,91.24,15.77]
[1643414572660,22.64256208,91.368,91.263,0.32137147]
[1643414572854,0.00674219,91.333,91.28,16.429]
[1643414573057,22.64256208,91.368,91.29,6.0]
[1643414573255,22.64256208,91.368,91.291,0.25]
[1643414573454,22.64256208,91.368,91.291,13.85939268]
[1643414573655,22.64256208,91.368,91.295,0.30362502]
[1643414573656,2.69256208,91.368,91.295,0.30362502]
[1643414573856,0.00256208,91.368,91.325,0.32417289]
[1643414574054,0.00256208,91.368,91.33,15.77]
[1643414574457,0.00256208,91.368,91.34,6.0]
[1643414574876,0.00256208,91.368,91.35,15.77]
[1643414575078,16.417,91.46,91.367,0.30007673]
[1643414575679,2.99840787,91.577,91.367,0.30007673]
[1643414575880,2.99840787,91.579,91.37,15.77]
[1643414576176,16.41,91.5,91.38,22.411]
[1643414576377,54.702,91.52,91.381,0.25]
[1643414576578,2.95669142,91.495,91.381,0.25]
[1643414576780,39.16039,91.494,91.381,0.25]
[1643414577180,16.411,91.49,91.381,0.25]
[1643414577578,16.411,91.49,91.38,6.0]
[1643414577782,15.77,91.57,91.398,0.30967039]
[1643414577981,2.95669142,91.501,91.382,2.95669142]
[1643414578181,2.95669142,91.501,91.37,15.77]
[1643414578182,16.409,91.5,91.326,77.8805]
[1643414578379,15.77,91.49,91.29,15.77]
[1643414578579,15.77,91.49,91.327,24.9051]
[1643414578781,46.61180282,91.489,91.327,24.9051]
[1643414578979,66.10099657,91.489,91.327,24.9051]
[1643414579178,66.10099657,91.489,91.329,0.30098982]
[1643414579179,2.95669142,91.488,91.329,0.30098982]
[1643414579379,2.95669142,91.488,91.356,0.31172959]
[1643414579380,54.717,91.48,91.356,0.31172959]
[1643414579679,54.717,91.48,91.356,10.41172959]
[1643414579880,2.95669142,91.479,91.356,0.31172959]
[1643414580082,2.95669142,91.479,91.35,6.0]
[1643414580383,35.08191868,91.469,91.351,0.25]
[1643414580583,54.751,91.45,91.351,0.25]
[1643414580781,35.52393247,91.449,91.351,0.25]
[1643414580981,6.0,91.44,91.351,0.25]
[1643414581383,6.0,91.44,91.329,0.25]
[1643414581585,22.426,91.44,91.33,15.77]
[1643414581783,22.426,91.44,91.331,0.25]
[1643414581982,22.426,91.44,91.329,0.25]
[1643414582185,22.426,91.44,91.33,15.77]
[1643414582393,6.0,91.44,91.331,0.25]
[1643414582594,6.0,91.44,91.34,16.419]
[1643414582796,6.0,91.44,91.341,0.25]
[1643414583692,6.0,91.44,91.362,0.32203303]
[1643414583897,6.0,91.44,91.37,16.414]
[1643414584294,6.0,91.44,91.371,0.25]
[1643414584693,35.52393247,91.449,91.371,0.25]
[1643414585298,35.52393247,91.449,91.347,0.25]
[1643414585994,35.52393247,91.449,91.35,16.417]
[1643414586196,35.52393247,91.449,91.347,0.25]
[1643414586395,35.52393247,91.449,91.331,0.25]
[1643414586595,6.0,91.439,91.34,6.0]
[1643414588003,6.0,91.439,91.341,0.25]
[1643414588200,16.42,91.44,91.341,0.25]
[1643414590903,16.42,91.44,91.331,0.25]
[1643414591304,16.42,91.44,91.34,6.0]
[1643414591504,16.42,91.44,91.331,0.25]
[1643414591903,16.427,91.41,91.329,0.25]
[1643414592103,44.39830624,91.409,91.329,0.25]
[1643414592504,44.39830624,91.409,91.328,0.25]
[1643414592703,44.39830624,91.409,91.28,16.429]
[1643414592905,16.428,91.4,91.291,109.4]
[1643414593305,16.428,91.4,91.277,78.4566]
[1643414593510,16.428,91.4,91.278,65.73]
[1643414594008,16.428,91.4,91.328,0.25]
[1643414594208,16.428,91.4,91.291,109.4]
[1643414595208,16.428,91.4,91.28,16.429]
[1643414595410,34.45349023,91.389,91.281,109.4]
[1643414595818,34.45349023,91.389,91.28,16.429]
[1643414596208,34.45349023,91.389,91.29,16.428]
[1643414596409,34.45349023,91.389,91.291,0.25]
[1643414597615,34.45349023,91.389,91.278,0.25]
[1643414598013,16.431,91.38,91.278,0.25]
[1643414598216,16.431,91.38,91.278,109.65]
[1643414598613,16.431,91.38,91.282,1.45395457]
[1643414598814,16.431,91.38,91.283,0.25]
[1643414600117,16.431,91.38,91.282,0.25]
[1643414601143,16.431,91.38,91.291,6.0]
[1643414601346,16.431,91.38,91.328,1.45395457]
[1643414601544,16.431,91.38,91.33,1.45395457]
[1643414601844,16.431,91.38,91.331,0.25]
[1643414602443,16.431,91.38,91.331,1.70395457]
[1643414602644,16.431,91.38,91.331,0.25]
[1643414603045,16.431,91.38,91.331,1.70395457]
[1643414603248,16.431,91.38,91.33,1.45395457]
[1643414603649,16.431,91.38,91.331,1.70395457]